fUST/lending_fUST_20240121
["ID","MTS","AMOUNT","RATE_DAILY","PERIOD"]
[312369779,1705839039185,-500.0,0.00027397,2]
[312369780,1705839039194,-500.0,0.00027397,2]
[312369781,1705839039203,-500.0,0.00027397,2]
[312369782,1705839039213,-500.0,0.00027397,2]
[312369783,1705839039222,-4448.13,0.00027397,2]
[312369784,1705839039231,-1000.0,0.00027397,2]
[312369785,1705839039240,-1572.49,0.00027397,2]
[312369786,1705839039250,-500.0,0.00027397,2]
[312369787,1705839039259,-6156.71,0.00027397,2]
[312369788,1705839039269,-239.29179191,0.00027397,2]
[312369789,1705839039279,-593.25,0.00027397,2]
[312369790,1705839039288,-500.0,0.00027397,2]
[312369791,1705839039297,-554.52,0.00027397,2]
[312369792,1705839039306,-1106.33,0.00027397,2]
[312369793,1705839039316,-500.0,0.00027397,2]
[312369794,1705839039325,-500.0,0.00027397,2]
[312369795,1705839039337,-10268.91,0.00027397,2]
[312369796,1705839039347,-500.0,0.00027397,2]
[312369797,1705839039357,-500.0,0.00027397,2]
[312369798,1705839039367,-500.0,0.00027397,2]
[312369799,1705839039376,-500.0,0.00027397,2]
[312369800,1705839039387,-784.24,0.00027397,2]
[312369801,1705839039396,-972.0,0.00027397,2]
[312369802,1705839039406,-500.0,0.00027397,2]
[312369803,1705839039417,-503.03,0.00027397,2]
[312369804,1705839039427,-574.04952877,0.00027397,2]
[312369805,1705839039438,-1320.75,0.00027397,2]
[312369806,1705839039448,-500.0,0.00027397,2]
[312369807,1705839039459,-500.0,0.00027397,2]
[312369808,1705839039472,-500.0,0.00027397,2]
[312369809,1705839039483,-770.08612166,0.00027397,2]
[312369810,1705839039494,-571.58,0.00027397,2]
[312369811,1705839039504,-579.0,0.00027397,2]
[312369812,1705839039515,-598.26,0.00027397,2]
[312369813,1705839039525,-522.23,0.00027397,2]
[312369814,1705839039536,-1057.42,0.00027397,2]
[312369815,1705839039547,-500.0,0.00027397,2]
[312369816,1705839039557,-500.0,0.00027397,2]
[312369817,1705839039568,-679.19,0.00027397,2]
[312369818,1705839039584,-536.75,0.00027397,2]
[312369819,1705839039596,-1462.02,0.00027397,2]
[312369820,1705839039607,-500.0,0.00027397,2]
[312369821,1705839039618,-500.0,0.00027397,2]
[312369822,1705839039629,-1469.38,0.00027397,2]
[312369823,1705839039640,-500.0,0.00027397,2]
[312369824,1705839039654,-310.73024265,0.00027397,2]
[312369825,1705839039665,-500.0,0.00027397,2]
[312369826,1705839039675,-18610.81,0.00027397,2]
[312369827,1705839039686,-738.12,0.00027397,2]
[312369828,1705839039696,-500.0,0.00027397,2]
[312369829,1705839039707,-500.0,0.00027397,2]
[312369830,1705839039718,-947.2,0.00027397,2]
[312369831,1705839039728,-500.0,0.00027397,2]
[312369832,1705839039737,-1021.06,0.00027397,2]
[312369833,1705839039748,-155.0,0.00027493,2]
[312369834,1705839039759,-6222.81,0.00027499,2]
[312369835,1705839039770,-500.0,0.00027499,2]
[312369836,1705839039780,-2215.17,0.00027499,2]
[312369837,1705839039791,-500.0,0.00027499,2]
[312369838,1705839039801,-500.0,0.00027499,2]
[312369839,1705839039811,-42074.72337016,0.000275,2]
[312369840,1705839039821,-500.0,0.00027671,2]
[312369841,1705839039834,-500.0,0.00027671,2]
[312369842,1705839039845,-698.86,0.00027671,2]
[312369843,1705839039855,-500.0,0.00027671,2]
[312369844,1705839039864,-500.0,0.00027671,2]
[312369845,1705839039874,-500.0,0.00027671,2]
[312369846,1705839039883,-1450.43,0.00027671,2]
[312369847,1705839039894,-2039.73,0.00027671,2]
[312369848,1705839039903,-243.80797857,0.00027671,2]
[312369849,1705839039912,-500.0,0.00027671,2]
[312369850,1705839039922,-500.0,0.00027671,2]
[312369851,1705839039932,-500.0,0.00027671,2]
[312369852,1705839039942,-500.0,0.00027671,2]
[312369853,1705839039951,-561.68,0.00027671,2]
[312369854,1705839039960,-505.48,0.00027671,2]
[312369855,1705839039970,-500.0,0.00027671,2]
[312369856,1705839039980,-500.0,0.00027671,2]
[312369857,1705839039992,-500.0,0.00027671,2]
[312369858,1705839040002,-500.0,0.00027671,2]
[312369859,1705839040011,-990.55,0.00027671,2]
[312369860,1705839040022,-500.0,0.00027671,2]
[312369861,1705839040032,-500.0,0.00027671,2]
[312369862,1705839040041,-500.0,0.00027671,2]
[312369863,1705839040051,-500.0,0.00027671,2]
[312369864,1705839040061,-557.83,0.00027671,2]
[312369865,1705839040071,-649.28923651,0.00027671,2]
[312369866,1705839040081,-988.6,0.00027671,2]
[312369867,1705839040092,-500.0,0.00027671,2]
[312369868,1705839040102,-500.0,0.00027671,2]
[312369869,1705839040112,-178.74155867,0.00027671,2]
[312369870,1705839040121,-500.0,0.00027671,2]
[312369871,1705839040131,-500.0,0.00027671,2]
[312369872,1705839040140,-500.0,0.00027671,2]
[312369873,1705839040150,-879.15,0.00027671,2]
[312369874,1705839040159,-500.0,0.00027671,2]
[312369875,1705839040169,-500.0,0.00027671,2]
[312369876,1705839040178,-500.0,0.00027671,2]
[312369877,1705839040187,-500.0,0.00027671,2]
[312369878,1705839040197,-500.0,0.00027671,2]
[312369879,1705839040207,-500.0,0.00027671,2]
[312369880,1705839040217,-500.0,0.00027671,2]
[312369881,1705839040227,-500.0,0.00027671,2]
[312369882,1705839040238,-550.93,0.00027671,2]
[312369883,1705839040376,-500.0,0.00027671,2]
[312369885,1705839040386,-500.0,0.00027671,2]
[312369886,1705839040395,-177.60771523,0.00027671,2]
[312369887,1705839040404,-500.0,0.00027671,2]
[312369888,1705839040413,-500.0,0.00027671,2]
[312369889,1705839040422,-500.0,0.00027671,2]
[312369890,1705839040432,-4626.55,0.00027671,2]
[312369891,1705839040441,-500.0,0.00027671,2]
[312369892,1705839040451,-500.0,0.00027671,2]
[312369893,1705839040461,-500.0,0.00027671,2]
[312369894,1705839040471,-500.0,0.00027671,2]
[312369895,1705839040482,-1618.06,0.00027671,2]
[312369896,1705839040494,-912.4,0.00027671,2]
[312369897,1705839040505,-500.0,0.00027671,2]
[312369898,1705839040515,-500.0,0.00027671,2]
[312369899,1705839040525,-903.14,0.00027671,2]
[312369900,1705839040534,-500.0,0.00027671,2]
[312369901,1705839040544,-500.0,0.00027671,2]
[312369902,1705839040554,-6402.56,0.00027671,2]
[312369903,1705839040563,-500.0,0.00027671,2]
[312369904,1705839040573,-500.0,0.00027671,2]
[312369905,1705839040583,-500.0,0.00027671,2]
[312369906,1705839040592,-500.0,0.00027671,2]
[312369907,1705839040601,-4448.13,0.00027671,2]
[312369908,1705839040610,-1000.0,0.00027671,2]
[312369909,1705839040620,-1572.49,0.00027671,2]
[312369910,1705839040629,-500.0,0.00027671,2]
[312369911,1705839040639,-6156.71,0.00027671,2]
[312369912,1705839040647,-593.25,0.00027671,2]
[312369913,1705839040656,-563.13250472,0.00027671,2]
[312369914,1705839040666,-554.52,0.00027671,2]
[312369915,1705839040675,-1106.33,0.00027671,2]
[312369916,1705839040683,-500.0,0.00027671,2]
[312369917,1705839040693,-500.0,0.00027671,2]
[312369918,1705839040703,-10268.91,0.00027671,2]
[312369919,1705839040713,-500.0,0.00027671,2]
[312369921,1705839040722,-500.0,0.00027671,2]
[312369923,1705839040732,-500.0,0.00027671,2]
[312369924,1705839040742,-500.0,0.00027671,2]
[312369925,1705839040752,-784.24,0.00027671,2]
[312369926,1705839040763,-972.0,0.00027671,2]
[312369927,1705839040773,-500.0,0.00027671,2]
[312369928,1705839040782,-503.03,0.00027671,2]
[312369929,1705839040792,-1320.75,0.00027671,2]
[312369930,1705839040801,-500.0,0.00027671,2]
[312369931,1705839040811,-500.0,0.00027671,2]
[312369932,1705839040820,-500.0,0.00027671,2]
[312369933,1705839040830,-571.58,0.00027671,2]
[312369934,1705839040840,-579.0,0.00027671,2]
[312369935,1705839040849,-598.26,0.00027671,2]
[312369936,1705839040859,-522.23,0.00027671,2]
[312369937,1705839040868,-1057.42,0.00027671,2]
[312369938,1705839040877,-500.0,0.00027671,2]
[312369939,1705839040886,-500.0,0.00027671,2]
[312369940,1705839040895,-679.19,0.00027671,2]
[312369941,1705839040904,-536.75,0.00027671,2]
[312369942,1705839040913,-1462.02,0.00027671,2]
[312369943,1705839040922,-500.0,0.00027671,2]
[312369944,1705839040932,-500.0,0.00027671,2]
[312369945,1705839040941,-1469.38,0.00027671,2]
[312369946,1705839040950,-500.0,0.00027671,2]
[312369947,1705839040959,-285.31719829,0.00027671,2]
[312369948,1705839040968,-18610.81,0.00027671,2]
[312369949,1705839040978,-738.12,0.00027671,2]
[312369950,1705839040987,-500.0,0.00027671,2]
[312369951,1705839040997,-500.0,0.00027671,2]
[312369952,1705839041007,-947.2,0.00027671,2]
[312369953,1705839041016,-500.0,0.00027671,2]
[312369954,1705839041026,-218.411078,0.00027671,2]
[312369955,1705839041036,-153.5209745,0.00027671,2]
[312369956,1705839041046,-171.0157685,0.00027671,2]
[312369957,1705839041055,-159.3657322,0.00027671,2]
[312369958,1705839041064,-154.4374714,0.00027671,2]
[312369959,1705839041074,-158.1324523,0.00027671,2]
[312369960,1705839041084,-309.381098,0.00027671,2]
[312369961,1705839041093,-199.1433421,0.00027671,2]
[312369962,1705839041104,-199.1433421,0.00027671,2]
[312369963,1705839041114,-199.1433421,0.00027671,2]
[312369964,1705839041123,-6222.81,0.00027773,2]
[312369965,1705839041132,-500.0,0.00027773,2]
[312369966,1705839041149,-2215.17,0.00027773,2]
[312369967,1705839041164,-500.0,0.00027773,2]
[312369968,1705839041175,-500.0,0.00027773,2]
[312369969,1705839041185,-500.0,0.00027886,2]
[312369970,1705839041195,-500.0,0.00027886,2]
[312369971,1705839041204,-500.0,0.00027886,2]
[312369972,1705839041214,-490.94658652,0.00027886,2]
[312369973,1705839041224,-859.17,0.00027886,2]
[312369974,1705839041234,-500.0,0.00027886,2]
[312369975,1705839041245,-500.0,0.00027886,2]
[312369976,1705839041255,-500.0,0.00027886,2]
[312369977,1705839041265,-500.0,0.00027886,2]
[312369978,1705839041275,-500.0,0.00027886,2]
[312369979,1705839041286,-642.51467487,0.00027886,2]
[312369980,1705839041296,-878.02,0.00027886,2]
[312369981,1705839041307,-931.6,0.00027886,2]
[312369982,1705839041317,-500.0,0.00027886,2]
[312369983,1705839041327,-500.0,0.00027886,2]
[312369984,1705839041338,-504.1339505,0.00027886,2]
[312369985,1705839041348,-546.07773803,0.00027886,2]
[312369986,1705839041357,-613.49,0.00027886,2]
[312369987,1705839041366,-500.0,0.00027886,2]
[312369988,1705839041376,-500.0,0.00027886,2]
[312369989,1705839041385,-500.0,0.00027886,2]
[312369990,1705839041397,-500.0,0.00027886,2]
[312369991,1705839041407,-500.0,0.00027886,2]
[312369992,1705839041417,-427.5739377,0.00027886,2]
[312369993,1705839041427,-500.0,0.00027886,2]
[312369994,1705839041437,-500.0,0.00027886,2]
[312369995,1705839041448,-150.91379181,0.00027886,2]
[312369996,1705839041458,-500.0,0.00027886,2]
[312369997,1705839041472,-500.0,0.00027886,2]
[312369998,1705839041482,-500.0,0.00027886,2]
[312369999,1705839041492,-500.0,0.00027886,2]
[312370000,1705839041503,-500.0,0.00027886,2]
[312370001,1705839041512,-500.0,0.00027886,2]
[312370002,1705839041522,-500.0,0.00027886,2]
[312370003,1705839041532,-247.8119434,0.00027893,2]
[312370004,1705839041542,-500.0,0.00027897,2]
[312370005,1705839041553,-500.0,0.00027897,2]
[312370006,1705839041564,-9203.43324372,0.00027924,5]
[312370007,1705839041574,-5000.0,0.00027924,5]
[312370008,1705839041585,-5000.0,0.00027924,5]
[312370009,1705839041594,-2364.34545318,0.00027924,5]
[312370010,1705839041604,-500.0,0.00027945,2]
[312370011,1705839041614,-500.0,0.00027945,2]
[312370012,1705839041623,-698.86,0.00027945,2]
[312370013,1705839041633,-500.0,0.00027945,2]
[312370014,1705839041643,-500.0,0.00027945,2]
[312370015,1705839041653,-1450.43,0.00027945,2]
[312370016,1705839041662,-2039.73,0.00027945,2]
[312370017,1705839041672,-500.0,0.00027945,2]
[312370018,1705839041682,-500.0,0.00027945,2]
[312370019,1705839041691,-500.0,0.00027945,2]
[312370020,1705839041701,-500.0,0.00027945,2]
[312370021,1705839041711,-561.68,0.00027945,2]
[312370022,1705839041721,-500.0,0.00027945,2]
[312370023,1705839041731,-505.48,0.00027945,2]
[312370024,1705839041740,-500.0,0.00027945,2]
[312370025,1705839041750,-500.0,0.00027945,2]
[312370026,1705839041759,-500.0,0.00027945,2]
[312370027,1705839041769,-990.55,0.00027945,2]
[312370028,1705839041779,-500.0,0.00027945,2]
[312370029,1705839041789,-500.0,0.00027945,2]
[312370030,1705839041799,-500.0,0.00027945,2]
[312370031,1705839041810,-500.0,0.00027945,2]
[312370032,1705839041819,-557.83,0.00027945,2]
[312370033,1705839041829,-988.6,0.00027945,2]
[312370034,1705839041839,-500.0,0.00027945,2]
[312370035,1705839041849,-500.0,0.00027945,2]
[312370036,1705839041859,-500.0,0.00027945,2]
[312370037,1705839041868,-500.0,0.00027945,2]
[312370038,1705839041877,-500.0,0.00027945,2]
[312370039,1705839041887,-879.15,0.00027945,2]
[312370040,1705839041897,-500.0,0.00027945,2]
[312370041,1705839041906,-500.0,0.00027945,2]
[312370042,1705839041916,-500.0,0.00027945,2]
[312370043,1705839041925,-500.0,0.00027945,2]
[312370044,1705839041934,-500.0,0.00027945,2]
[312370045,1705839041944,-550.93,0.00027945,2]
[312370046,1705839041953,-500.0,0.00027945,2]
[312370047,1705839041963,-500.0,0.00027945,2]
[312370048,1705839041972,-500.0,0.00027945,2]
[312370049,1705839041981,-500.0,0.00027945,2]
[312370050,1705839041991,-500.0,0.00027945,2]
[312370051,1705839042001,-4626.55,0.00027945,2]
[312370052,1705839042012,-500.0,0.00027945,2]
[312370053,1705839042026,-528.38216131,0.00027945,2]
[312370054,1705839042037,-1618.06,0.00027945,2]
[312370055,1705839042047,-912.4,0.00027945,2]
[312370056,1705839042058,-500.0,0.00027945,2]
[312370057,1705839042069,-500.0,0.00027945,2]
[312370058,1705839042080,-903.14,0.00027945,2]
[312370059,1705839042091,-500.0,0.00027945,2]
[312370060,1705839042101,-500.0,0.00027945,2]
[312370061,1705839042111,-6402.56,0.00027945,2]
[312370062,1705839042122,-500.0,0.00027945,2]
[312370063,1705839042132,-500.0,0.00027945,2]
[312370064,1705839042142,-215.15,0.00027945,2]
[312370065,1705839042153,-500.0,0.00027945,2]
[312370066,1705839042163,-4448.13,0.00027945,2]
[312370067,1705839042173,-1000.0,0.00027945,2]
[312370068,1705839042182,-1572.49,0.00027945,2]
[312370069,1705839042191,-6156.71,0.00027945,2]
[312370070,1705839042201,-593.25,0.00027945,2]
[312370071,1705839042210,-554.52,0.00027945,2]
[312370072,1705839042220,-1106.33,0.00027945,2]
[312370073,1705839042229,-500.0,0.00027945,2]
[312370074,1705839042239,-500.0,0.00027945,2]
[312370075,1705839042248,-8277.4721989,0.00027945,2]
[312370076,1705839042510,-1021.06,0.00027671,2]
[312370077,1705839042522,-1991.4378011,0.00027945,2]
[312370078,1705839042535,-500.0,0.00027945,2]
[312370079,1705839042546,-500.0,0.00027945,2]
[312370080,1705839042557,-500.0,0.00027945,2]
[312370081,1705839042569,-339.33648351,0.00027945,2]
[312370082,1705839042581,-784.24,0.00027945,2]
[312370083,1705839042594,-972.0,0.00027945,2]
[312370084,1705839042606,-500.0,0.00027945,2]
[312370085,1705839042617,-503.03,0.00027945,2]
[312370086,1705839042629,-1320.75,0.00027945,2]
[312370087,1705839042641,-129.80355034,0.00027945,2]
[312370107,1705839088967,200.0,0.00030136,15]
[312370109,1705839301891,-154.7215013,0.00021999,4]
[312370110,1705839301911,-180.2784987,0.00022,4]
[312370111,1705839388374,200.0,0.00028949,15]
[312370113,1705839433106,-154.7215013,0.00021999,4]
[312370114,1705839433128,-43.2784987,0.00022,4]
[312370118,1705839688404,200.0,0.00027597,15]
[312370119,1705839689173,280.0,0.00030357,15]
[312370134,1705839988466,200.0,0.00027585,15]
[312370135,1705839989203,280.0,0.00030343,15]
[312370143,1705840238592,-16.53485525,0.00022,4]
[312370144,1705840238601,-166.666666,0.0002294,2]
[312370145,1705840238610,-181.321518,0.00023505,2]
[312370146,1705840238619,-154.7215013,0.00023685,4]
[312370147,1705840238628,-24900.0,0.00023935,2]
[312370148,1705840238637,-4013.17086376,0.00024334,2]
[312370149,1705840238646,-4051.01994728,0.00024335,5]
[312370150,1705840238656,-166.666666,0.00024504,2]
[312370151,1705840238665,-2562.65,0.00025078,3]
[312370152,1705840238673,-3326.14,0.00025078,3]
[312370153,1705840238682,-2771.78,0.00025078,3]
[312370155,1705840238691,-1836.59983504,0.00025086,2]
[312370157,1705840238701,-1165.99918647,0.00025086,2]
[312370159,1705840238710,-261.08742669,0.00025086,2]
[312370160,1705840238719,-644.2750614,0.00025086,2]
[312370161,1705840238728,-874.18725797,0.00025086,2]
[312370162,1705840238737,-1811.41770485,0.00025086,2]
[312370163,1705840238746,-588.23188464,0.00025087,2]
[312370164,1705840238756,-616.63420581,0.00025087,2]
[312370165,1705840238765,-69193.42908732,0.00025088,2]
[312370166,1705840238774,-613.4608853,0.00025845,2]
[312370167,1705840238783,-166.666666,0.00026067,2]
[312370168,1705840238792,-163.09864906,0.00026317,2]
[312370169,1705840238802,-154.7215013,0.00026317,2]
[312370170,1705840238811,-154.7215013,0.00026317,2]
[312370171,1705840238821,-211.49658438,0.00026317,2]
[312370172,1705840238829,-1589.80949829,0.00026318,2]
[312370173,1705840238838,-496.4931708,0.00026546,5]
[312370174,1705840238847,-153.0,0.00026849,2]
[312370175,1705840238856,-253.62744049,0.00027297,2]
[312370176,1705840238866,-500.0,0.00027397,2]
[312370177,1705840238875,-500.0,0.00027397,2]
[312370178,1705840238888,-500.0,0.00027397,2]
[312370179,1705840238897,-500.0,0.00027397,2]
[312370180,1705840238906,-618.6,0.00027397,2]
[312370181,1705840238915,-500.0,0.00027397,2]
[312370182,1705840238926,-488.04280479,0.00027397,2]
[312370183,1705840238935,-500.0,0.00027397,2]
[312370184,1705840238945,-500.0,0.00027397,2]
[312370185,1705840238954,-500.0,0.00027397,2]
[312370186,1705840238965,-487.49378126,0.00027397,2]
[312370187,1705840238973,-500.0,0.00027397,2]
[312370188,1705840238982,-500.0,0.00027397,2]
[312370189,1705840238991,-500.0,0.00027397,2]
[312370190,1705840239000,-500.0,0.00027397,2]
[312370191,1705840239009,-500.0,0.00027397,2]
[312370192,1705840239019,-503.44,0.00027397,2]
[312370193,1705840239028,-500.0,0.00027397,2]
[312370194,1705840239038,-500.0,0.00027397,2]
[312370195,1705840239047,-500.0,0.00027397,2]
[312370196,1705840239056,-500.0,0.00027397,2]
[312370197,1705840239067,-500.0,0.00027397,2]
[312370198,1705840239076,-500.0,0.00027397,2]
[312370199,1705840239084,-500.0,0.00027397,2]
[312370200,1705840239093,-519.56,0.00027397,2]
[312370201,1705840239102,-500.0,0.00027397,2]
[312370202,1705840239111,-500.0,0.00027397,2]
[312370203,1705840239119,-500.0,0.00027397,2]
[312370204,1705840239128,-916.26,0.00027397,2]
[312370205,1705840239137,-500.0,0.00027397,2]
[312370206,1705840239146,-500.0,0.00027397,2]
[312370207,1705840239155,-500.0,0.00027397,2]
[312370208,1705840239164,-500.0,0.00027397,2]
[312370209,1705840239173,-500.0,0.00027397,2]
[312370210,1705840239182,-500.0,0.00027397,2]
[312370211,1705840239191,-500.0,0.00027397,2]
[312370212,1705840239201,-163.8931268,0.00027397,2]
[312370213,1705840239209,-334.34482967,0.00027397,2]
[312370214,1705840239218,-1000.0,0.00027397,2]
[312370215,1705840239228,-500.0,0.00027397,2]
[312370216,1705840239237,-500.0,0.00027397,2]
[312370217,1705840239246,-500.0,0.00027397,2]
[312370218,1705840239256,-500.0,0.00027397,2]
[312370219,1705840239265,-500.0,0.00027397,2]
[312370220,1705840239275,-500.0,0.00027397,2]
[312370221,1705840239284,-500.0,0.00027397,2]
[312370222,1705840239292,-704.47,0.00027397,2]
[312370223,1705840239300,-500.0,0.00027397,2]
[312370224,1705840239309,-500.0,0.00027397,2]
[312370225,1705840239318,-500.0,0.00027397,2]
[312370226,1705840239326,-1541.91,0.00027397,2]
[312370227,1705840239335,-500.0,0.00027397,2]
[312370228,1705840239344,-500.0,0.00027397,2]
[312370229,1705840239352,-375.34644847,0.00027397,2]
[312370230,1705840239361,-2181.38,0.00027397,2]
[312370231,1705840239370,-500.0,0.00027397,2]
[312370232,1705840239380,-500.0,0.00027397,2]
[312370233,1705840239388,-540.66,0.00027397,2]
[312370234,1705840239397,-500.0,0.00027397,2]
[312370235,1705840239406,-500.0,0.00027397,2]
[312370236,1705840239415,-500.0,0.00027397,2]
[312370237,1705840239423,-500.0,0.00027397,2]
[312370238,1705840239435,-500.0,0.00027397,2]
[312370239,1705840239444,-500.0,0.00027397,2]
[312370240,1705840239453,-500.0,0.00027397,2]
[312370241,1705840239462,-500.0,0.00027397,2]
[312370242,1705840239471,-155.0,0.00027397,2]
[312370243,1705840239480,-500.0,0.00027397,2]
[312370244,1705840239491,-635.76,0.00027397,2]
[312370245,1705840239499,-500.0,0.00027397,2]
[312370246,1705840239508,-500.0,0.00027397,2]
[312370247,1705840239517,-500.0,0.00027397,2]
[312370248,1705840239526,-803.85,0.00027397,2]
[312370249,1705840239535,-1170.33,0.00027397,2]
[312370250,1705840239543,-543.14,0.00027397,2]
[312370251,1705840239552,-500.0,0.00027397,2]
[312370252,1705840239561,-500.0,0.00027397,2]
[312370253,1705840239569,-150.10003198,0.00027397,2]
[312370254,1705840239578,-958.48,0.00027397,2]
[312370255,1705840239586,-500.0,0.00027397,2]
[312370256,1705840239596,-500.0,0.00027397,2]
[312370257,1705840239606,-500.0,0.00027397,2]
[312370258,1705840239615,-500.0,0.00027397,2]
[312370259,1705840239624,-1633.95,0.00027397,2]
[312370260,1705840239633,-500.0,0.00027397,2]
[312370261,1705840239770,-500.0,0.00027397,2]
[312370262,1705840239780,-500.0,0.00027397,2]
[312370263,1705840239789,-500.0,0.00027397,2]
[312370264,1705840239799,-500.0,0.00027397,2]
[312370265,1705840239808,-1728.01,0.00027397,2]
[312370266,1705840239817,-500.0,0.00027397,2]
[312370267,1705840239827,-952.8,0.00027397,2]
[312370268,1705840239836,-500.0,0.00027397,2]
[312370269,1705840239845,-500.0,0.00027397,2]
[312370270,1705840239854,-500.0,0.00027397,2]
[312370271,1705840239863,-536.42,0.00027397,2]
[312370272,1705840239873,-952.24,0.00027397,2]
[312370273,1705840239886,-500.0,0.00027397,2]
[312370274,1705840239895,-308.79262305,0.00027397,2]
[312370275,1705840239905,-861.77,0.00027397,2]
[312370276,1705840239914,-500.0,0.00027397,2]
[312370277,1705840239923,-4977.87,0.00027397,2]
[312370278,1705840239932,-16015.78,0.00027397,2]
[312370279,1705840239941,-500.0,0.00027397,2]
[312370280,1705840239951,-500.0,0.00027397,2]
[312370281,1705840239961,-437.94230908,0.00027397,2]
[312370282,1705840239970,-500.0,0.00027397,2]
[312370283,1705840239980,-1087.03,0.00027397,2]
[312370284,1705840239989,-500.0,0.00027397,2]
[312370285,1705840239998,-458.1347498,0.00027397,2]
[312370286,1705840240007,-500.0,0.00027397,2]
[312370287,1705840240016,-425.81095081,0.00027397,2]
[312370288,1705840240025,-652.2,0.00027397,2]
[312370289,1705840240035,-500.0,0.00027397,2]
[312370290,1705840240044,-500.0,0.00027397,2]
[312370291,1705840240054,-500.0,0.00027397,2]
[312370292,1705840240063,-500.0,0.00027397,2]
[312370293,1705840240073,-500.0,0.00027397,2]
[312370294,1705840240082,-500.0,0.00027397,2]
[312370295,1705840240091,-7546.36,0.00027397,2]
[312370296,1705840240100,-1011.81,0.00027397,2]
[312370297,1705840240109,-500.0,0.00027397,2]
[312370298,1705840240118,-500.0,0.00027397,2]
[312370299,1705840240127,-500.0,0.00027397,2]
[312370300,1705840240136,-500.0,0.00027397,2]
[312370301,1705840240145,-2594.81,0.00027397,2]
[312370302,1705840240153,-880.16,0.00027397,2]
[312370303,1705840240162,-500.0,0.00027397,2]
[312370304,1705840240171,-500.0,0.00027397,2]
[312370305,1705840240180,-4983.37,0.00027397,2]
[312370306,1705840240189,-500.0,0.00027397,2]
[312370307,1705840240198,-561.16798404,0.00027397,2]
[312370308,1705840240207,-500.0,0.00027397,2]
[312370309,1705840240216,-500.0,0.00027397,2]
[312370310,1705840240225,-500.0,0.00027397,2]
[312370311,1705840240234,-500.0,0.00027397,2]
[312370312,1705840240243,-6897.52,0.00027397,2]
[312370313,1705840240252,-500.0,0.00027397,2]
[312370314,1705840240261,-500.0,0.00027397,2]
[312370315,1705840240270,-500.0,0.00027397,2]
[312370316,1705840240279,-500.0,0.00027397,2]
[312370317,1705840240288,-4199.62,0.00027397,2]
[312370318,1705840240297,-1073.8,0.00027397,2]
[312370319,1705840240306,-6888.73,0.00027397,2]
[312370320,1705840240316,-1239.46,0.00027397,2]
[312370321,1705840240325,-1032.53,0.00027397,2]
[312370322,1705840240334,-11828.99,0.00027397,2]
[312370323,1705840240343,-459.32992208,0.00027397,2]
[312370324,1705840240352,-1691.9,0.00027397,2]
[312370325,1705840240361,-500.0,0.00027397,2]
[312370326,1705840240370,-500.0,0.00027397,2]
[312370327,1705840240380,-500.0,0.00027397,2]
[312370328,1705840240388,-500.0,0.00027397,2]
[312370329,1705840240397,-500.0,0.00027397,2]